bitfinex/quotes_SOLUSD_20240816
["timestamp","ask_amount","ask_price","bid_price","bid_amount"]
[1723816184916,17.7236,141.06,140.98,388.9931]
[1723816184917,7.0892,141.06,140.99,17.731]
[1723816185099,7.0887,141.07,141.01,17.7281]
[1723816185391,7.0887,141.07,141.02,7.21659]
[1723816185870,30.0181,141.12,141.02,0.12549]
[1723816186050,7.0891,141.07,141.02,389.11659]
[1723816186257,7.0892,141.06,141.02,389.11659]
[1723816186679,30.0181,141.12,141.03,7.0905]
[1723816186888,30.0181,141.12,141.04,7.21559]
[1723816187256,7.0877,141.09,141.04,7.21559]
[1723816188289,7.0883,141.08,141.04,7.21559]
[1723816188587,7.0883,141.08,141.04,0.12549]
[1723816189086,7.0887,141.07,141.03,406.7163]
[1723816189427,30.0181,141.12,141.04,7.09]
[1723816189428,7.0882,141.08,141.04,7.09]
[1723816189980,7.0882,141.08,141.03,406.7163]
[1723816190166,0.12549,141.11,141.03,381.9]
[1723816190167,0.12549,141.09,141.03,381.9]
[1723816190384,7.0889,141.07,141.03,381.9]
[1723816190907,0.12549,141.09,141.03,381.9]
[1723816191201,7.0901,141.04,141.03,381.9]
[1723816191406,7.0901,141.04,141.0,432.1326]
[1723816192511,7.0908,141.03,141.0,414.4028]
[1723816192679,65.37647,141.09,141.0,414.4028]
[1723816192680,0.12549,141.07,141.0,414.4028]
[1723816192868,68.13403191,141.09,141.01,7.0912]
[1723816193075,7.089,141.07,141.01,17.7284]
[1723816193307,7.089,141.07,141.02,7.091]
[1723816193876,20.0,141.09,141.02,7.091]
[1723816193877,7.0892,141.06,141.02,7.091]
[1723816194103,7.0892,141.06,141.01,24.8197]
[1723816194307,7.0892,141.06,141.02,0.12549]
[1723816194525,7.0892,141.06,141.01,24.8199]
[1723816195181,7.0897,141.05,141.01,24.8199]
[1723816195523,20.0,141.09,141.01,381.9]
[1723816195524,0.12549,141.08,141.01,381.9]
[1723816195821,7.0911,141.02,141.01,381.9]
[1723816195979,7.0911,141.02,140.98,406.7256]
[1723816196179,7.0911,141.02,140.98,399.6325]
[1723816197109,7.0917,141.01,140.98,399.6325]
[1723816197625,7.0913,141.02,140.98,399.6325]
[1723816198286,7.0927,140.99,140.98,381.9]
[1723816198487,17.7271,141.03,140.98,381.9]
[1723816198701,7.0918,141.01,140.98,381.9]
[1723816198884,7.34118,141.04,141.0,7.092]
[1723816199085,7.0902,141.04,140.99,7.0925]
[1723816199318,27.0907,141.03,140.99,24.8237]
[1723816199519,27.0907,141.03,140.99,17.7312]
[1723816199817,7.0903,141.04,140.99,17.7312]
[1723816200422,7.0903,141.04,140.99,24.8237]
[1723816200597,35.4356,141.11,140.99,17.7312]
[1723816200598,17.7185,141.1,140.99,17.7312]
[1723816200804,17.7185,141.1,141.02,7.0907]
[1723816201036,17.7211,141.08,140.99,381.9]
[1723816201182,45.67215413,141.11,140.99,381.9]
[1723816201386,35.4431,141.08,140.99,381.9]
[1723816201605,7.092,141.01,140.99,381.9]
[1723816201808,17.7187,141.1,140.97,381.9]
[1723816202115,17.7187,141.1,141.0,7.092]
[1723816202116,0.12549,141.08,141.0,7.092]
[1723816202616,7.0902,141.04,141.0,7.092]
[1723816202789,7.0898,141.05,141.0,388.992]
[1723816202986,17.7187,141.1,141.02,7.0907]
[1723816203195,7.0892,141.06,141.02,388.9907]
[1723816203417,17.7208,141.08,141.02,381.9]
[1723816203595,7.0906,141.03,141.02,381.9]
[1723816203797,17.7259,141.04,140.96,414.9042]
[1723816203989,12.7454,141.05,140.99,7.0925]
[1723816204187,27.0905,141.04,140.99,7.0925]
[1723816204422,20.0,141.04,140.99,7.0925]
[1723816204625,7.091,141.03,140.98,7.093]
[1723816204931,7.0912,141.02,140.97,24.8267]
[1723816205217,0.12549,141.03,140.97,24.8267]
[1723816205402,12.7598,141.09,140.99,17.7312]
[1723816205601,12.7598,141.09,141.02,7.0907]
[1723816205811,12.7598,141.09,141.02,381.9]
[1723816206501,7.0892,141.06,141.02,381.9]
[1723816207031,60.8424,141.13,141.03,17.7262]
[1723816207324,7.0885,141.08,141.03,17.7262]
[1723816207631,17.7172,141.11,141.03,17.7262]
[1723816207810,7.0882,141.08,141.04,7.0901]
[1723816208706,17.7172,141.11,141.02,381.9]
[1723816208915,7.0898,141.05,141.02,381.9]
[1723816209224,7.0893,141.06,141.02,381.9]
[1723816209604,7.0893,141.06,141.02,388.9908]
[1723816210236,7.0897,141.05,141.01,7.0915]
[1723816210620,17.722,141.07,141.0,0.12549]
[1723816210807,7.091,141.03,140.98,7.093]
[1723816211008,7.0913,141.02,140.98,382.4]
[1723816211323,0.12549,141.08,140.98,382.4]
[1723816211324,7.21409,141.08,141.03,7.0902]
[1723816211637,7.0895,141.06,141.01,24.8203]
[1723816211927,20.0,141.07,141.01,17.7288]
[1723816211928,7.0888,141.07,141.01,17.7288]
[1723816212131,0.12549,141.09,141.01,17.7288]
[1723816212334,7.09,141.05,141.01,400.1288]
[1723816213847,7.0911,141.02,141.01,382.4]
[1723816214011,0.12549,141.03,140.96,415.4042]
[1723816214222,7.0935,140.98,140.96,382.4]
[1723816214431,65.37647,141.03,140.96,382.4]
[1723816214432,7.0937,140.97,140.96,382.4]
[1723816215409,17.7309,141.0,140.92,407.2359]
[1723816215601,7.0946,140.96,140.92,400.1398]
[1723816215802,7.0946,140.96,140.92,407.2359]
[1723816216109,0.25098,140.99,140.93,7.0956]
[1723816216110,7.0938,140.97,140.93,7.0956]
[1723816216809,7.0942,140.96,140.92,407.236]
[1723816217007,7.0935,140.98,140.92,400.1398]
[1723816217308,0.12549,141.0,140.92,407.2359]
[1723816217504,7.0938,140.97,140.92,407.2359]
[1723816217722,7.0938,140.97,140.93,7.0956]
[1723816218232,7.0938,140.97,140.92,407.2358]
[1723816218446,17.7297,141.01,140.92,407.2358]
[1723816218447,0.25098,141.02,140.92,400.1398]
[1723816218617,7.0931,140.99,140.94,7.0952]
[1723816219027,7.0923,141.0,140.95,7.0947]
[1723816219211,7.0932,140.98,140.94,400.1372]
[1723816219812,7.0932,140.98,140.94,407.2323]
[1723816220011,7.0937,140.97,140.94,400.1372]
[1723816220217,2.78157891,141.04,140.94,400.1372]
[1723816220420,7.0924,141.0,140.95,7.22009]
[1723816220627,44.1525,141.05,140.95,0.12549]
[1723816221040,20.0,141.04,140.95,0.12549]
[1723816221220,20.0,141.04,140.94,382.4]
[1723816221648,0.12549,141.02,140.94,382.4]
[1723816222140,20.12549,141.02,140.94,382.4]
[1723816222552,0.12549,141.01,140.94,382.4]
[1723816223248,20.12549,141.02,140.95,0.12549]
[1723816223923,20.12549,141.02,140.94,382.4]
[1723816224153,0.12549,141.01,140.94,382.4]
[1723816224620,0.12549,141.01,140.95,0.12549]
[1723816225058,0.12549,141.01,140.95,382.52549]
[1723816226817,13.2452,141.05,140.95,382.52549]
[1723816227017,2.84210859,141.07,140.96,0.12549]
[1723816227274,28.417424,141.15,140.96,0.12549]
[1723816227275,45.3014,141.09,140.97,33.1076]
[1723816227663,45.3014,141.09,140.98,0.25098]
[1723816227823,20.32636834,141.12,140.99,0.12549]
[1723816228020,55.24929321,141.12,140.99,447.65098]
[1723816228230,12.9265,141.12,141.0,0.25098]
[1723816228822,12.9265,141.12,141.01,33.1076]
[1723816229060,20.3242379,141.16,141.02,65.50196]
[1723816229352,12.9265,141.16,141.04,0.12549]
[1723816229538,12.9265,141.16,141.04,447.90196]
[1723816229722,2.79288363,141.18,141.06,0.12549]
[1723816230069,12.9265,141.19,141.06,66.14763612]
[1723816230351,12.9265,141.19,141.07,0.12549]
[1723816230529,12.9265,141.19,141.07,0.25098]
[1723816231449,12.9265,141.19,141.08,0.25098]
[1723816231747,2.83358425,141.2,141.09,0.25098]
[1723816231951,0.8398236,141.21,141.09,0.25098]
[1723816232130,0.8398236,141.21,141.1,12.6312]
[1723816232331,0.8398236,141.21,141.11,0.25098]
[1723816232654,0.8398236,141.21,141.11,0.12549]
[1723816233656,0.25098,141.2,141.11,0.12549]
[1723816233826,0.12549,141.19,141.11,0.12549]
[1723816234026,0.12549,141.19,141.1,12.6312]
[1723816234655,45.12549,141.19,141.1,12.6312]
[1723816234857,0.12549,141.17,141.1,12.6312]
[1723816235156,0.25098,141.17,141.1,12.6312]
[1723816235531,0.12549,141.17,141.1,12.6312]
[1723816235838,20.0,141.18,141.11,0.12549]
[1723816237342,0.8398236,141.21,141.12,31.3203]
[1723816237660,0.8398236,141.21,141.13,0.37647]
[1723816237852,0.8398236,141.21,141.13,66.91851174]
[1723816239466,0.8398236,141.21,141.13,65.50196]
[1723816239836,0.8398236,141.21,141.13,45.37647]
[1723816240039,0.8398236,141.21,141.13,45.12549]
[1723816240361,0.8398236,141.21,141.13,45.7671488]
[1723816240577,0.8398236,141.21,141.13,45.12549]
[1723816241554,0.8398236,141.21,141.14,0.25098]
[1723816241760,0.8398236,141.21,141.14,382.52549]
[1723816243757,0.12549,141.2,141.14,382.52549]
[1723816243935,0.12549,141.2,141.14,382.4]
[1723816244132,0.25098,141.2,141.14,382.4]
[1723816244335,0.25098,141.2,141.1,382.4]
[1723816244572,0.12549,141.19,141.1,382.4]
[1723816244864,0.12549,141.18,141.1,382.4]
[1723816245074,0.25098,141.18,141.1,382.4]
[1723816246153,0.12549,141.18,141.11,0.12549]
[1723816246337,0.12549,141.18,141.1,382.4]
[1723816246538,0.12549,141.17,141.1,382.4]
[1723816246737,0.25098,141.17,141.1,382.4]
[1723816248055,0.12549,141.17,141.1,382.4]
[1723816249450,20.8398236,141.21,141.1,382.4]
[1723816249649,45.25098,141.2,141.1,382.4]
[1723816249958,20.0,141.19,141.1,382.4]
[1723816250268,45.12549,141.18,141.1,382.4]
[1723816250470,12.7663,141.16,141.1,382.4]
[1723816250647,0.12549,141.14,141.1,382.4]
[1723816250845,0.12549,141.14,141.03,413.2937]
[1723816251045,0.12549,141.14,141.03,382.4]
[1723816252292,0.12549,141.14,140.99,30.8937]
[1723816252293,0.12549,141.12,140.99,30.8937]
[1723816252501,65.37647,141.12,140.99,30.8937]
[1723816252791,0.12549,141.11,140.99,30.8937]
[1723816252996,0.12549,141.11,141.0,1.33985439]
[1723816252997,0.12549,141.1,141.0,1.33985439]
[1723816253178,0.25098,141.1,141.0,1.33985439]
[1723816253777,0.25098,141.1,141.01,0.12549]
[1723816253963,0.25098,141.1,141.01,382.4]
[1723816254182,12.7529,141.13,141.02,0.12549]
[1723816254387,12.7529,141.13,141.03,0.12549]
[1723816254689,12.7529,141.13,141.03,1.66716052]
[1723816254897,12.7529,141.13,141.04,0.25098]
[1723816255666,0.12549,141.12,141.04,0.25098]
[1723816256061,0.12549,141.12,141.03,0.25098]
[1723816256264,0.12549,141.12,141.05,0.12549]
[1723816256483,0.12549,141.12,141.03,0.25098]
[1723816256687,45.12549,141.12,141.03,0.12549]
[1723816256882,20.0,141.11,141.02,45.25098]
[1723816257099,20.12549,141.12,141.02,45.25098]
[1723816257293,20.12549,141.12,141.03,0.37905494]
[1723816257595,20.12549,141.12,141.04,0.25098]
[1723816257896,20.12549,141.12,141.04,382.52549]
[1723816259289,0.12549,141.11,141.04,382.52549]
[1723816259493,20.12549,141.12,141.04,382.52549]
[1723816260868,0.12549,141.11,141.04,382.4]
[1723816261069,45.12549,141.11,141.04,382.4]
[1723816261369,7.089,141.07,141.04,382.4]
[1723816261898,7.0892,141.06,141.04,382.4]
[1723816262583,7.0885,141.08,141.04,382.4]
[1723816262780,20.0,141.07,141.04,382.4]
[1723816263096,27.0888,141.07,141.04,382.4]
[1723816264864,7.0892,141.06,141.04,382.4]
[1723816265087,7.0896,141.05,141.04,382.4]
[1723816265301,27.0896,141.05,141.04,382.4]
[1723816265491,27.21509,141.05,141.04,382.4]
[1723816265701,27.34058,141.05,141.04,382.4]
[1723816266295,27.0896,141.05,141.04,382.4]
[1723816266492,27.21509,141.05,141.04,382.4]
[1723816266686,7.0918,141.01,140.99,382.4]
[1723816266881,7.0932,140.98,140.97,382.4]
[1723816267087,7.0908,141.03,140.98,7.0928]
[1723816267405,7.0917,141.01,140.97,382.4]
[1723816267603,7.0922,141.0,140.97,382.4]
[1723816267782,27.0913,141.02,140.97,389.4933]
[1723816267981,7.0907,141.03,140.98,7.093]
[1723816268202,7.0907,141.03,140.99,0.12549]
[1723816268418,7.0913,141.02,140.98,7.093]
[1723816268585,7.0907,141.03,140.98,7.093]
[1723816268913,7.0904,141.04,140.99,0.12549]
[1723816269092,7.0904,141.04,140.99,7.21779]
[1723816269298,7.0904,141.04,141.0,7.0921]
[1723816269493,60.6393,141.12,141.01,0.12549]
[1723816269694,60.6393,141.12,141.03,30.2056]
[1723816269695,29.8292,141.12,141.03,30.2056]
[1723816269895,7.0887,141.07,141.03,37.2962]
[1723816270090,7.0877,141.09,141.04,0.12549]
[1723816270287,73.31190469,141.16,141.04,0.25098]
[1723816270288,17.7124,141.15,141.04,0.25098]
[1723816270491,17.7124,141.15,141.07,7.0885]
[1723816270727,17.7124,141.15,141.07,389.4885]
[1723816271021,7.0867,141.11,141.07,382.4]
[1723816271228,17.7124,141.15,141.07,382.4]
[1723816271516,7.0881,141.08,141.07,382.4]
[1723816271831,7.0897,141.05,141.03,382.4]
[1723816272159,7.0901,141.04,141.03,382.4]
[1723816272427,27.0901,141.04,141.03,382.4]
[1723816275038,12.6603,141.08,141.03,382.4]
[1723816275243,7.0893,141.06,141.03,382.4]
[1723816275445,7.0897,141.05,141.03,382.4]
[1723816275746,27.0887,141.07,141.03,389.4905]
[1723816276041,7.0901,141.05,141.03,382.4]
[1723816276455,7.0893,141.06,141.03,382.4]
[1723816276610,27.0888,141.07,141.03,382.4]
[1723816276837,7.0893,141.06,141.03,382.4]
[1723816277015,7.0901,141.04,141.03,382.4]
[1723816277720,27.0901,141.04,141.03,382.4]
[1723816279036,27.0901,141.04,140.98,32.7828]
[1723816279037,0.12549,141.03,140.98,415.1828]
[1723816279239,35.441,141.08,140.98,415.1828]
[1723816279240,0.12549,141.05,140.98,415.1828]
[1723816279552,7.0921,141.01,140.98,415.1828]
[1723816279753,7.0923,141.0,140.98,415.1828]
[1723816279910,7.0918,141.01,140.98,415.1828]
[1723816280116,7.0922,141.0,140.98,415.1828]
[1723816280316,7.0927,140.99,140.98,382.4]
[1723816281618,0.12549,140.99,140.94,412.412]
[1723816281845,0.12549,140.99,140.94,382.4]
[1723816281846,7.0947,140.95,140.94,382.4]
[1723816282015,0.12549,140.98,140.9,432.0362]
[1723816282213,7.0948,140.95,140.9,439.133]
[1723816282623,7.0948,140.95,140.91,7.0966]
[1723816283055,7.0953,140.94,140.9,432.0362]
[1723816283235,7.0957,140.93,140.9,414.2939]
[1723816283428,7.0953,140.94,140.9,414.2939]
[1723816283853,7.0947,140.95,140.9,421.391]
[1723816284035,20.0,140.99,140.9,414.2939]
[1723816284225,0.12549,141.0,140.91,46.13799842]
[1723816284431,7.0931,140.99,140.94,7.0951]
[1723816284846,7.0932,140.98,140.94,7.0951]
[1723816285222,7.0932,140.98,140.93,24.8339]
[1723816285521,0.12549,141.01,140.92,0.12549]
[1723816285727,17.7312,141.0,140.92,382.4]
[1723816285926,7.0957,140.93,140.92,382.4]
[1723816286126,17.7335,140.98,140.87,400.1464]
[1723816286348,7.0953,140.94,140.87,400.1464]
[1723816286551,7.0963,140.92,140.88,7.0981]
[1723816286750,0.25098,140.97,140.88,7.0981]
[1723816286958,7.0957,140.93,140.89,7.0976]
[1723816287251,7.0967,140.91,140.87,400.1464]
[1723816287623,7.0963,140.92,140.87,400.1464]
[1723816287817,7.0948,140.95,140.9,7.0971]
[1723816288126,20.0,140.94,140.9,7.0971]
[1723816289561,7.0957,140.93,140.89,17.7436]
[1723816290137,20.0,140.94,140.87,382.4]
[1723816290382,0.25098,140.95,140.87,382.4]
[1723816290539,7.097,140.91,140.87,389.4986]
[1723816290732,7.097,140.91,140.87,382.4]
[1723816290933,7.0982,140.88,140.87,382.4]
[1723816291133,20.16389,140.88,140.87,382.4]
[1723816291354,40.28938,140.88,140.87,382.4]
[1723816291555,7.0992,140.86,140.82,7.1011]
[1723816291765,7.0987,140.87,140.82,389.5011]
[1723816292143,7.0993,140.86,140.82,382.4]
[1723816292657,7.1,140.85,140.82,382.4]
[1723816292834,7.0998,140.85,140.82,382.4]
[1723816293468,7.1007,140.83,140.82,382.4]
[1723816294237,7.1001,140.85,140.82,382.4]
[1723816294641,7.0987,140.87,140.82,382.4]
[1723816294843,12.5962,140.91,140.82,382.4]
[1723816295082,12.5962,140.91,140.84,7.1001]
[1723816295236,7.0982,140.88,140.83,24.8517]
[1723816295437,7.0982,140.88,140.84,7.1002]
[1723816295842,35.4621,141.0,140.87,7.0987]
[1723816295843,12.0977,140.95,140.87,7.0987]
[1723816296051,7.0967,140.91,140.87,382.4]
[1723816296955,7.0962,140.92,140.87,389.4986]
[1723816297571,14.93037106,140.95,140.87,382.4]
[1723816297572,32.66767106,140.95,140.87,382.4]
[1723816297746,7.0968,140.91,140.87,382.4]
[1723816298162,7.0978,140.89,140.87,382.4]
[1723816298348,7.0982,140.88,140.85,412.87549]
[1723816298547,7.0978,140.89,140.85,412.75]
[1723816299464,7.0972,140.9,140.85,419.8497]
[1723816299683,0.12549,140.93,140.86,0.25098]
[1723816299851,7.097,140.91,140.86,25.09728]
[1723816300061,7.097,140.91,140.87,7.0986]
[1723816300256,7.0972,140.9,140.86,24.97219]
[1723816300451,7.0978,140.89,140.86,0.12549]
[1723816300769,20.0,140.94,140.86,0.25098]
[1723816300969,12.0977,140.95,140.86,0.25098]
[1723816301180,12.7211,140.99,140.91,17.7413]
[1723816301348,12.7211,140.99,140.92,0.12549]
[1723816301555,12.7211,140.99,140.92,382.52549]
[1723816301888,7.0951,140.95,140.92,382.52549]
[1723816302570,7.0943,140.96,140.92,389.62159]
[1723816302760,7.0943,140.96,140.92,382.52549]
[1723816302954,30.4535,140.99,140.92,382.52549]
[1723816302955,12.7211,140.99,140.92,382.4]
[1723816303154,17.7347,140.97,140.92,382.4]
[1723816303571,7.0953,140.94,140.92,382.4]
[1723816304175,12.7211,140.99,140.92,382.4]
[1723816304369,27.0935,140.98,140.93,38.17489]
[1723816304876,7.0937,140.97,140.93,38.17489]
[1723816305055,7.0937,140.97,140.93,31.07959]
[1723816305248,20.0,140.98,140.93,31.07959]
[1723816305249,7.0943,140.96,140.93,31.07959]
[1723816305449,7.0948,140.95,140.93,413.3541]
[1723816305750,7.0943,140.96,140.93,382.4]
[1723816305964,7.0952,140.94,140.93,382.4]
[1723816307565,27.0952,140.94,140.93,382.4]
[1723816309675,27.34618,140.94,140.93,382.4]
[1723816309864,72.34618,140.94,140.93,382.4]
[1723816310176,72.34618,140.94,140.86,378.3721]
[1723816310177,7.0987,140.87,140.86,378.3721]
[1723816311682,20.0,140.87,140.86,378.3721]
[1723816311980,62.98948,140.94,140.86,378.3721]
[1723816312187,7.0976,140.9,140.86,378.3721]
[1723816312776,7.0977,140.89,140.86,378.3721]
[1723816314994,7.0973,140.9,140.86,385.4711]
[1723816315299,7.0968,140.91,140.87,0.12549]
[1723816315490,7.0972,140.9,140.87,0.12549]
[1723816315670,7.0986,140.88,140.86,378.3721]
[1723816317083,0.12549,140.92,140.86,378.3721]
[1723816317384,7.0978,140.89,140.86,378.3721]
[1723816317579,7.0984,140.88,140.86,378.3721]
[1723816317781,7.0987,140.87,140.86,378.3721]
[1723816318377,7.0983,140.88,140.86,378.3721]
[1723816319297,7.0987,140.87,140.86,378.3721]
[1723816320072,7.0977,140.89,140.86,378.3721]
[1723816320280,27.0982,140.88,140.83,403.2244]
[1723816320501,7.0988,140.87,140.83,403.2244]
[1723816320696,27.0983,140.88,140.84,0.12549]
[1723816320895,7.0987,140.87,140.84,0.12549]
[1723816321089,20.0,140.88,140.83,396.1238]
[1723816321281,17.741,140.92,140.83,396.1238]
[1723816321282,7.0991,140.87,140.83,396.1238]
[1723816321787,7.0993,140.86,140.83,396.1238]
[1723816322169,7.1001,140.85,140.83,378.3721]
[1723816322387,17.86899,140.9,140.81,410.8633]
[1723816322388,0.12549,140.9,140.81,410.8633]
[1723816322694,7.1011,140.83,140.81,410.8633]
[1723816323204,17.87409,140.86,140.81,378.3721]
[1723816323500,7.1012,140.82,140.81,378.3721]
[1723816323812,0.12549,140.85,140.81,7.1014]
[1723816324009,20.0,140.85,140.79,17.7564]
[1723816324302,20.0,140.85,140.78,385.4752]
[1723816324303,7.1016,140.82,140.78,385.4752]
[1723816324678,20.0,140.81,140.78,378.3721]
[1723816324901,0.12549,140.84,140.78,378.3721]
[1723816325207,45.25098,140.84,140.78,378.3721]
[1723816325505,20.0,140.83,140.78,378.3721]
[1723816325696,7.1019,140.81,140.78,378.3721]
[1723816326281,20.0,140.83,140.78,378.3721]
[1723816326282,20.0,140.83,140.78,385.4749]
[1723816326608,20.25098,140.84,140.78,378.3721]
[1723816327013,7.1023,140.8,140.78,378.3721]
[1723816327510,7.1027,140.79,140.78,378.3721]
[1723816328216,17.7522,140.83,140.74,32.9347]
[1723816328217,7.1033,140.78,140.74,418.4119]
[1723816328501,17.7522,140.83,140.74,411.3068]
[1723816328799,7.1038,140.77,140.74,411.3068]
[1723816328999,7.1047,140.75,140.74,378.3721]
[1723816329205,27.1047,140.75,140.74,378.3721]
[1723816330100,40.3459,140.75,140.74,378.3721]
[1723816330807,27.1047,140.75,140.74,378.3721]
[1723816331308,7.1058,140.73,140.72,0.8398236]
[1723816331505,27.1058,140.73,140.72,0.8398236]
[1723816332322,72.35678,140.73,140.72,2.36e-05]
[1723816333422,72.35678,140.73,140.64,378.3721]
[1723816333423,0.12549,140.71,140.64,378.3721]
[1723816333593,65.25098,140.71,140.64,378.3721]
[1723816333780,7.109,140.67,140.64,378.3721]
[1723816333981,20.12549,140.71,140.64,378.3721]
[1723816334197,7.1083,140.68,140.64,378.3721]
[1723816334513,7.1083,140.68,140.64,385.4823]
[1723816335213,7.1098,140.65,140.64,378.3721]
[1723816335393,7.1098,140.65,140.62,378.3721]
[1723816335598,7.1094,140.66,140.62,378.3721]
[1723816335795,7.1099,140.65,140.62,378.3721]
[1723816335981,7.1108,140.63,140.62,378.3721]
[1723816336387,17.7741,140.66,140.61,410.8485]
[1723816336388,7.1107,140.64,140.61,410.8485]
[1723816337003,98.3099,140.69,140.61,410.8485]
[1723816337004,7.1098,140.65,140.61,410.8485]
[1723816337199,7.1099,140.65,140.61,410.8485]
[1723816337507,7.23679,140.62,140.61,378.3721]
[1723816337714,7.1124,140.6,140.58,0.8398236]
[1723816338007,7.1128,140.59,140.58,0.8398236]
[1723816338203,27.23829,140.59,140.58,0.8398236]
[1723816338400,27.36378,140.59,140.58,0.8398236]
[1723816339384,72.36378,140.59,140.58,0.8398236]
[1723816339620,72.48927,140.59,140.58,0.8398236]
[1723816339825,20.12549,140.59,140.58,0.8398236]
[1723816340024,12.8623,140.65,140.58,0.8398236]
[1723816340321,7.1128,140.6,140.58,0.8398236]
[1723816340627,7.1119,140.61,140.58,0.8398236]
[1723816340783,27.1124,140.6,140.58,0.8398236]
[1723816340994,7.1128,140.59,140.58,0.8398236]
[1723816341322,7.1128,140.59,140.4,64.02]
[1723816341323,12.3081,140.58,140.46,378.3721]
[1723816341624,0.12549,140.51,140.43,379.2119236]
[1723816341830,0.12549,140.49,140.43,379.2119236]
[1723816342009,7.1199,140.45,140.43,379.2119236]
[1723816342418,12.77319,140.43,140.2,32.4443]
[1723816342628,7.25099,140.34,140.2,32.4443]
[1723816342816,27.1255,140.34,140.2,32.4443]
[1723816343307,7.1255,140.34,140.2,32.4443]
[1723816343738,72.37648,140.34,140.2,32.4443]
[1723816343925,72.62746,140.34,140.2,32.4443]
[1723816344228,72.50197,140.34,140.33,492.6701]
[1723816344524,72.62746,140.34,140.33,474.5844]
[1723816344748,27.37648,140.34,140.33,474.5844]
[1723816344932,7.1255,140.34,140.33,474.5844]
[1723816346251,17.8047,140.42,140.33,474.70989]
[1723816346553,12.6868,140.49,140.34,45.25098]
[1723816346840,17.8026,140.43,140.34,45.25098]
[1723816347039,12.6868,140.49,140.34,0.12549]
[1723816347207,7.1255,140.34,140.33,474.5844]
[1723816347602,37.1255,140.34,140.33,474.5844]
[1723816348047,37.1255,140.34,140.33,456.3522]
[1723816348048,54.9393,140.34,140.33,456.3522]
[1723816348206,120.44126,140.34,140.33,431.6447]
[1723816348407,75.19028,140.34,140.33,424.3061]
[1723816348615,120.19028,140.34,140.33,417.4796]
[1723816349041,75.19028,140.34,140.33,409.838]
[1723816349212,75.31577,140.34,140.33,299.4864]
[1723816349416,120.44126,140.34,140.33,235.89431]
[1723816349624,120.44126,140.34,140.33,214.97691]
[1723816350029,120.44126,140.34,140.33,124.36041]
[1723816350355,24.9464,140.3,140.29,8.463e-05]
[1723816350567,24.9464,140.3,140.15,13.5820236]
[1723816350568,7.1347,140.16,140.15,2.36e-05]
[1723816350735,7.1347,140.16,140.14,10.0199]
[1723816350736,7.1352,140.15,140.14,10.0199]
[1723816351040,30.0,140.33,140.1,0.3299966]
[1723816351041,7.1372,140.11,140.1,0.3299966]
[1723816351439,37.1372,140.11,140.1,0.3299966]
[1723816352313,57.38818,140.11,140.1,9.66e-05]
[1723816352641,57.51367,140.11,140.1,9.66e-05]
[1723816352840,57.63916,140.11,140.1,9.66e-05]
[1723816353048,110.04648286,140.11,140.1,9.66e-05]
[1723816353558,110.04648286,140.11,140.0,5.08003]
[1723816353559,0.12549,140.1,140.0,5.08003]
[1723816353865,7.1419,140.02,140.0,5.08003]
[1723816354219,7.1419,140.02,140.0,0.43003]
[1723816354571,7.1419,140.02,140.0,3e-05]
[1723816354572,20.25098,140.01,140.0,3e-05]